fUST/lending_fUST_20250915
["ID","MTS","AMOUNT","RATE_DAILY","PERIOD"]
[385555564,1757895039604,-480.0,0.00021917,2]
[385555565,1757895039614,-948.16,0.00021917,2]
[385555566,1757895039627,-480.0,0.00021917,2]
[385555567,1757895039636,-480.0,0.00021917,2]
[385555568,1757895039645,-673.9,0.00021917,2]
[385555569,1757895039655,-480.0,0.00021917,2]
[385555570,1757895039664,-480.0,0.00021917,2]
[385555571,1757895039674,-579.32,0.00021917,2]
[385555572,1757895039683,-480.0,0.00021917,2]
[385555573,1757895039692,-547.34746444,0.00021917,2]
[385555574,1757895039705,-83.96958719,0.00021917,2]
[385555608,1757895041032,-396.03041281,0.00021917,2]
[385555610,1757895041042,-376.02426733,0.00021917,2]
[385555611,1757895041051,-542.05,0.00021917,2]
[385555612,1757895041060,-480.0,0.00021917,2]
[385555613,1757895041070,-481.07317569,0.00021917,2]
[385555614,1757895041079,-480.0,0.00021917,2]
[385555615,1757895041088,-907.02,0.00021917,2]
[385555616,1757895041097,-480.0,0.00021917,2]
[385555617,1757895041107,-663.12,0.00021917,2]
[385555618,1757895041117,-480.0,0.00021917,2]
[385555619,1757895041130,-480.0,0.00021917,2]
[385555620,1757895041139,-480.0,0.00021917,2]
[385555621,1757895041148,-480.0,0.00021917,2]
[385555622,1757895041158,-901.88,0.00021917,2]
[385555623,1757895041167,-3388.12,0.00021917,2]
[385555624,1757895041177,-480.0,0.00021917,2]
[385555625,1757895041186,-480.0,0.00021917,2]
[385555626,1757895041195,-480.0,0.00021917,2]
[385555627,1757895041204,-480.0,0.00021917,2]
[385555628,1757895041214,-480.0,0.00021917,2]
[385555629,1757895041223,-480.0,0.00021917,2]
[385555630,1757895041232,-480.0,0.00021917,2]
[385555631,1757895041242,-480.0,0.00021917,2]
[385555632,1757895041262,-480.0,0.00021917,2]
[385555633,1757895041272,-480.0,0.00021917,2]
[385555634,1757895041282,-480.0,0.00021917,2]
[385555635,1757895041292,-3337.32,0.00021917,2]
[385555636,1757895041306,-480.0,0.00021917,2]
[385555637,1757895041336,-480.0,0.00021917,2]
[385555638,1757895041369,-480.0,0.00021917,2]
[385555639,1757895041396,-480.0,0.00021917,2]
[385555640,1757895041406,-596.96181244,0.00021973,2]
[385555641,1757895041416,-500.0,0.00021973,2]
[385555642,1757895041426,-500.0,0.00021973,2]
[385555643,1757895041436,-500.0,0.00021973,2]
[385555644,1757895041446,-500.0,0.00021973,2]
[385555645,1757895041455,-500.0,0.00021973,2]
[385555646,1757895041465,-500.0,0.00021973,2]
[385555647,1757895041474,-367.04078439,0.00021973,2]
[385555648,1757895041483,-500.0,0.00021973,2]
[385555649,1757895041493,-500.0,0.00021973,2]
[385555650,1757895041502,-500.0,0.00021973,2]
[385555651,1757895041511,-500.0,0.00021973,2]
[385555652,1757895041521,-931.26,0.00022,7]
[385555653,1757895041531,-160.0,0.00022027,2]
[385555654,1757895041541,-233.1999649,0.00022027,2]
[385555655,1757895041551,-847.27885267,0.00022027,2]
[385555656,1757895041561,-10000.01,0.00022091,2]
[385555657,1757895041570,-500.0,0.00022191,2]
[385555658,1757895041580,-480.0,0.00022191,3]
[385555659,1757895041590,-480.0,0.00022191,3]
[385555660,1757895041600,-480.0,0.00022191,3]
[385555661,1757895041609,-480.0,0.00022191,3]
[385555662,1757895041619,-480.0,0.00022191,3]
[385555663,1757895041632,-480.0,0.00022191,3]
[385555664,1757895041642,-366.72403157,0.00022191,3]
[385555665,1757895041651,-480.0,0.00022191,3]
[385555666,1757895041662,-480.0,0.00022191,3]
[385555667,1757895041672,-480.0,0.00022191,3]
[385555668,1757895041682,-480.0,0.00022191,3]
[385555669,1757895041692,-948.16,0.00022191,3]
[385555670,1757895041702,-480.0,0.00022191,3]
[385555671,1757895041712,-480.0,0.00022191,3]
[385555672,1757895041721,-673.9,0.00022191,3]
[385555673,1757895041731,-191.55616529,0.00022191,3]
[385555674,1757895041740,-480.0,0.00022191,3]
[385555675,1757895041749,-480.0,0.00022191,3]
[385555676,1757895041759,-480.0,0.00022191,3]
[385555677,1757895041768,-542.05,0.00022191,3]
[385555678,1757895041777,-480.0,0.00022191,3]
[385555679,1757895041787,-480.0,0.00022191,3]
[385555680,1757895041797,-907.02,0.00022191,3]
[385555681,1757895041806,-480.0,0.00022191,3]
[385555682,1757895041816,-663.12,0.00022191,3]
[385555683,1757895041826,-480.0,0.00022191,3]
[385555684,1757895041836,-462.52019847,0.00022191,3]
[385555685,1757895041846,-480.0,0.00022191,3]
[385555686,1757895041855,-480.0,0.00022191,3]
[385555687,1757895041865,-901.88,0.00022191,3]
[385555688,1757895041876,-3388.12,0.00022191,3]
[385555689,1757895041886,-480.0,0.00022191,3]
[385555690,1757895041895,-480.0,0.00022191,3]
[385555691,1757895041905,-480.0,0.00022191,3]
[385555692,1757895041914,-480.0,0.00022191,3]
[385555693,1757895041924,-480.0,0.00022191,3]
[385555694,1757895041933,-480.0,0.00022191,3]
[385555695,1757895041942,-480.0,0.00022191,3]
[385555696,1757895041952,-480.0,0.00022191,3]
[385555697,1757895041961,-480.0,0.00022191,3]
[385555698,1757895041972,-480.0,0.00022191,3]
[385555699,1757895041982,-480.0,0.00022191,3]
[385555700,1757895041991,-3337.32,0.00022191,3]
[385555701,1757895042001,-480.0,0.00022191,3]
[385555702,1757895042011,-480.0,0.00022191,3]
[385555703,1757895042021,-480.0,0.00022191,3]
[385555704,1757895042031,-480.0,0.00022191,3]
[385555705,1757895042041,-300.0,0.00022354,20]
[385555706,1757895042050,-300.0,0.00022354,20]
[385555707,1757895042059,-300.0,0.00022354,20]
[385555708,1757895042069,-300.0,0.00022354,20]
[385555709,1757895042079,-300.0,0.00022354,20]
[385555710,1757895042088,-300.0,0.00022354,20]
[385555711,1757895042097,-300.0,0.00022354,20]
[385555712,1757895042107,-300.0,0.00022354,20]
[385555713,1757895042116,-300.0,0.00022354,20]
[385555714,1757895042128,-300.0,0.00022354,20]
[385555715,1757895042137,-300.0,0.00022354,20]
[385555716,1757895042147,-300.0,0.00022354,20]
[385555717,1757895042156,-300.0,0.00022354,20]
[385555718,1757895042166,-300.0,0.00022354,20]
[385555719,1757895042175,-300.0,0.00022354,20]
[385555720,1757895042185,-3000.0,0.000224,2]
[385555721,1757895042195,-3000.0,0.0002241,2]
[385555722,1757895042204,-3000.0,0.0002242,2]
[385555723,1757895042213,-3000.0,0.0002243,2]
[385555724,1757895042223,-3000.0,0.0002244,2]
[385555725,1757895042233,-3000.0,0.0002245,2]
[385555726,1757895042243,-1330.14750019,0.0002246,2]
[385555774,1757895043810,-1669.85249981,0.0002246,2]
[385555775,1757895043819,-480.0,0.00022465,3]
[385555776,1757895043829,-480.0,0.00022465,3]
[385555777,1757895043839,-480.0,0.00022465,3]
[385555778,1757895043848,-480.0,0.00022465,3]
[385555779,1757895043858,-480.0,0.00022465,3]
[385555780,1757895043867,-281.85604876,0.00022465,3]
[385555781,1757895043878,-480.0,0.00022465,3]
[385555782,1757895043888,-480.0,0.00022465,3]
[385555783,1757895043898,-480.0,0.00022465,3]
[385555784,1757895043908,-480.0,0.00022465,3]
[385555785,1757895043917,-948.16,0.00022465,3]
[385555786,1757895043926,-480.0,0.00022465,3]
[385555787,1757895043936,-480.0,0.00022465,3]
[385555788,1757895043945,-673.9,0.00022465,3]
[385555789,1757895043955,-480.0,0.00022465,3]
[385555790,1757895043964,-480.0,0.00022465,3]
[385555791,1757895043973,-480.0,0.00022465,3]
[385555792,1757895043983,-542.05,0.00022465,3]
[385555793,1757895043992,-480.0,0.00022465,3]
[385555794,1757895044002,-480.0,0.00022465,3]
[385555795,1757895044011,-907.02,0.00022465,3]
[385555796,1757895044020,-480.0,0.00022465,3]
[385555797,1757895044031,-663.12,0.00022465,3]
[385555798,1757895044040,-480.0,0.00022465,3]
[385555799,1757895044050,-480.0,0.00022465,3]
[385555800,1757895044059,-480.0,0.00022465,3]
[385555801,1757895044069,-901.88,0.00022465,3]
[385555802,1757895044078,-3388.12,0.00022465,3]
[385555803,1757895044088,-480.0,0.00022465,3]
[385555804,1757895044097,-480.0,0.00022465,3]
[385555805,1757895044107,-480.0,0.00022465,3]
[385555806,1757895044116,-480.0,0.00022465,3]
[385555807,1757895044125,-480.0,0.00022465,3]
[385555808,1757895044135,-480.0,0.00022465,3]
[385555809,1757895044144,-480.0,0.00022465,3]
[385555810,1757895044153,-480.0,0.00022465,3]
[385555811,1757895044163,-480.0,0.00022465,3]
[385555812,1757895044172,-480.0,0.00022465,3]
[385555813,1757895044182,-480.0,0.00022465,3]
[385555814,1757895044191,-3337.32,0.00022465,3]
[385555815,1757895044201,-480.0,0.00022465,3]
[385555816,1757895044210,-480.0,0.00022465,3]
[385555817,1757895044219,-480.0,0.00022465,3]
[385555818,1757895044229,-480.0,0.00022465,3]
[385555819,1757895044238,-242.99522321,0.000225,2]
[385555820,1757895044247,-572.34946434,0.00022521,2]
[385555821,1757895044257,-186.9058687,0.00022521,2]
[385555822,1757895044266,-1000.0,0.00022521,2]
[385555823,1757895044276,-1000.0,0.00022521,2]
[385555824,1757895044285,-1000.0,0.00022521,2]
[385555825,1757895044295,-1000.0,0.00022521,2]
[385555826,1757895044304,-1000.0,0.00022521,2]
[385555827,1757895044315,-501.86712041,0.00022549,2]
[385555828,1757895044324,-480.0,0.00022739,3]
[385555829,1757895044334,-194.518,0.00022739,2]
[385555830,1757895044344,-480.0,0.00022739,3]
[385555831,1757895044353,-480.0,0.00022739,3]
[385555832,1757895044363,-480.0,0.00022739,3]
[385555833,1757895044373,-480.0,0.00022739,3]
[385555834,1757895044382,-480.0,0.00022739,3]
[385555835,1757895044392,-480.0,0.00022739,3]
[385555836,1757895044402,-480.0,0.00022739,3]
[385555837,1757895044412,-480.0,0.00022739,3]
[385555838,1757895044421,-948.16,0.00022739,3]
[385555839,1757895044431,-480.0,0.00022739,3]
[385555840,1757895044440,-480.0,0.00022739,3]
[385555841,1757895044450,-673.9,0.00022739,3]
[385555842,1757895044461,-480.0,0.00022739,3]
[385555843,1757895044471,-480.0,0.00022739,3]
[385555844,1757895044481,-480.0,0.00022739,3]
[385555845,1757895044491,-542.05,0.00022739,3]
[385555846,1757895044501,-480.0,0.00022739,3]
[385555847,1757895044651,-480.0,0.00022739,3]
[385555848,1757895044660,-907.02,0.00022739,3]
[385555849,1757895044671,-480.0,0.00022739,3]
[385555850,1757895044680,-663.12,0.00022739,3]
[385555851,1757895044691,-480.0,0.00022739,3]
[385555852,1757895044702,-292.55888499,0.00022739,3]
[385555853,1757895044712,-480.0,0.00022739,3]
[385555854,1757895044721,-901.88,0.00022739,3]
[385555855,1757895044731,-3388.12,0.00022739,3]
[385555856,1757895044740,-480.0,0.00022739,3]
[385555857,1757895044750,-480.0,0.00022739,3]
[385555858,1757895044759,-480.0,0.00022739,3]
[385555859,1757895044768,-494.39249381,0.00022739,3]
[385555860,1757895044777,-480.0,0.00022739,3]
[385555861,1757895044787,-480.0,0.00022739,3]
[385555862,1757895044796,-480.0,0.00022739,3]
[385555863,1757895044806,-606.70668137,0.00022739,3]
[385555864,1757895044815,-480.0,0.00022739,3]
[385555865,1757895044825,-480.0,0.00022739,3]
[385555866,1757895044834,-480.0,0.00022739,3]
[385555867,1757895044844,-3337.32,0.00022739,3]
[385555868,1757895044853,-480.0,0.00022739,3]
[385555869,1757895044862,-365.02205345,0.00022739,3]
[385555870,1757895044872,-480.0,0.00022739,3]
[385555871,1757895044882,-480.0,0.00022739,3]
[385555872,1757895044891,-150.0,0.00022869,2]
[385555873,1757895044902,-976.0,0.00022869,2]
[385555874,1757895044914,-634.0,0.00022869,2]
[385555875,1757895044923,-2156.0,0.00022869,2]
[385555876,1757895044934,-187.83327025,0.00022933,3]
[385555877,1757895044943,-7536.11234434,0.00022968,2]
[385555878,1757895044951,-217.77739939,0.00022994,2]
[385555879,1757895044961,-39725.25169713,0.00023,2]
[385555886,1757895045995,-555.18,0.00021917,2]
[385555887,1757895046006,-1433.52,0.00022191,2]
[385555888,1757895046051,-48566.48,0.00022191,2]
[385555889,1757895046061,-555.18,0.00022191,3]
[385555890,1757895046071,-555.18,0.00022465,3]
[385555891,1757895046081,-555.18,0.00022739,3]
[385555892,1757895046090,-378531.98439087,0.00023,2]
[385555893,1757895046099,-217.77739939,0.00023,3]
[385555894,1757895046109,-1040.53806382,0.00023011,2]
[385555895,1757895046118,-480.0,0.00023013,3]
[385555896,1757895046127,-480.0,0.00023013,3]
[385555897,1757895046137,-168.30810841,0.00023013,3]
[385555898,1757895046146,-480.0,0.00023013,3]
[385555899,1757895046156,-151.0,0.00023013,7]
[385555901,1757895046166,-151.0,0.00023013,7]
[385555902,1757895046175,-152.863974,0.00023013,7]
[385555903,1757895046184,-480.0,0.00023013,3]
[385555904,1757895046193,-151.0,0.00023013,7]
[385555905,1757895046202,-152.598955,0.00023013,7]
[385555906,1757895046211,-151.0,0.00023013,7]
[385555907,1757895046221,-480.0,0.00023013,3]
[385555908,1757895046230,-480.0,0.00023013,3]
[385555909,1757895046239,-480.0,0.00023013,3]
[385555911,1757895046249,-603.39906976,0.00023013,3]
[385555912,1757895046258,-480.0,0.00023013,3]
[385555913,1757895046267,-480.0,0.00023013,3]
[385555914,1757895046276,-673.9,0.00023013,3]
[385555915,1757895046285,-297.29777641,0.00023013,3]
[385555916,1757895046294,-480.0,0.00023013,3]
[385555917,1757895046303,-480.0,0.00023013,3]
[385555918,1757895046312,-542.05,0.00023013,3]
[385555919,1757895046321,-151.0,0.00023013,7]
[385555920,1757895046331,-151.0,0.00023013,7]
[385555921,1757895046340,-161.066428,0.00023013,7]
[385555922,1757895046349,-480.0,0.00023013,3]
[385555923,1757895046358,-480.0,0.00023013,3]
[385555924,1757895046367,-907.02,0.00023013,3]
[385555926,1757895046377,-480.0,0.00023013,3]
[385555928,1757895046387,-663.12,0.00023013,3]
[385555929,1757895046396,-310.17698498,0.00023013,3]
[385555930,1757895046405,-151.0,0.00023013,7]
[385555931,1757895046414,-480.0,0.00023013,3]
[385555932,1757895046423,-901.88,0.00023013,3]
[385555933,1757895046432,-151.0,0.00023013,7]
[385555934,1757895046441,-3388.12,0.00023013,3]
[385555935,1757895046450,-239.26753592,0.00023013,3]
[385555936,1757895046459,-480.0,0.00023013,3]
[385555937,1757895046468,-480.0,0.00023013,3]
[385555938,1757895046477,-151.0,0.00023013,7]
[385555939,1757895046486,-480.0,0.00023013,3]
[385555940,1757895046495,-480.0,0.00023013,3]
[385555941,1757895046505,-480.0,0.00023013,3]
[385555942,1757895046514,-480.0,0.00023013,3]
[385555943,1757895046523,-480.0,0.00023013,3]
[385555944,1757895046532,-480.0,0.00023013,3]
[385555945,1757895046541,-3337.32,0.00023013,3]
[385555946,1757895046551,-480.0,0.00023013,3]
[385555947,1757895046560,-480.0,0.00023013,3]
[385555948,1757895046569,-480.0,0.00023013,3]
[385555949,1757895046579,-151.0,0.00023013,7]
[385555950,1757895046588,-151.0,0.00023013,7]
[385555951,1757895046597,-151.0,0.00023013,7]
[385555952,1757895046606,-555.18,0.00023013,3]
[385555953,1757895046616,-1500.0,0.00023068,2]
[385555954,1757895046628,-1500.0,0.00023068,2]
[385555955,1757895046637,-1500.0,0.00023068,2]
[385555956,1757895046647,-1500.0,0.00023068,2]
[385555957,1757895046655,-1500.0,0.00023068,2]
[385555958,1757895046665,-384.39685332,0.00023081,2]
[385555959,1757895046675,-151.0,0.00023095,7]
[385555960,1757895046684,-151.0,0.00023095,7]
[385555961,1757895046693,-160.0,0.00023169,2]
[385555962,1757895046703,-242.99522321,0.00023184,2]
[385555963,1757895046712,-151.0,0.00023187,3]
[385555964,1757895046721,-600.0,0.00023193,20]
[385555965,1757895046730,-233.1999649,0.00023287,3]
[385555966,1757895046739,-480.0,0.00023287,3]
[385555967,1757895046748,-480.0,0.00023287,3]
[385555968,1757895046757,-480.0,0.00023287,3]
[385555969,1757895046766,-480.0,0.00023287,3]
[385555970,1757895046774,-480.0,0.00023287,3]
[385555971,1757895046783,-480.0,0.00023287,3]
[385555972,1757895046793,-480.0,0.00023287,3]
[385555973,1757895046802,-508.11320462,0.00023287,3]
[385555974,1757895046810,-480.0,0.00023287,3]
[385555975,1757895046819,-673.9,0.00023287,3]
[385555976,1757895046828,-480.0,0.00023287,3]
[385555977,1757895046837,-383.42053055,0.00023287,3]
[385555978,1757895046846,-542.05,0.00023287,3]
[385555979,1757895046856,-278.61284866,0.00023287,3]
[385555980,1757895046865,-480.0,0.00023287,3]
[385555981,1757895046874,-907.02,0.00023287,3]
[385555982,1757895046884,-480.0,0.00023287,3]
[385555983,1757895046894,-663.12,0.00023287,3]
[385555984,1757895046903,-480.0,0.00023287,3]
[385555985,1757895046915,-901.88,0.00023287,3]
[385555986,1757895046928,-3388.12,0.00023287,3]
[385555987,1757895046937,-480.0,0.00023287,3]
[385555988,1757895046946,-480.0,0.00023287,3]
[385555989,1757895046955,-480.0,0.00023287,3]
[385555990,1757895046963,-480.0,0.00023287,3]
[385555991,1757895046972,-480.0,0.00023287,3]
[385555992,1757895046981,-480.0,0.00023287,3]
[385555993,1757895046990,-480.0,0.00023287,3]
[385555994,1757895046999,-480.0,0.00023287,3]
[385555995,1757895047008,-3337.32,0.00023287,3]
[385555996,1757895047017,-480.0,0.00023287,3]
[385555997,1757895047026,-480.0,0.00023287,3]
[385555998,1757895047035,-480.0,0.00023287,3]
[385555999,1757895047044,-671.49,0.00023287,2]
[385556000,1757895047054,-555.18,0.00023287,3]
[385556001,1757895047063,-931.26,0.000233,7]
[385556002,1757895047073,-1483.96313597,0.00023317,2]
[385556003,1757895047082,-160.16681185,0.000234,2]
[385556004,1757895047091,-500.0,0.000234,2]
[385556005,1757895047100,-500.0,0.000234,2]
[385556006,1757895047109,-1680.0,0.00023439,2]
[385556008,1757895047119,-151.0,0.0002344,3]
[385556010,1757895047128,-500.0,0.00023453,2]
[385556012,1757895047137,-500.0,0.00023471,2]
[385556013,1757895047146,-500.0,0.00023471,2]
[385556014,1757895047156,-500.0,0.00023471,2]
[385556015,1757895047165,-2098.67366183,0.00023491,2]
[385556016,1757895047174,-2000.0,0.000235,2]
[385556017,1757895047192,-547.53856204,0.00023561,3]
[385556018,1757895047211,-480.0,0.00023561,3]
[385556019,1757895047221,-480.0,0.00023561,3]
[385556020,1757895047233,-480.0,0.00023561,3]
[385556021,1757895047251,-423.75429237,0.00023561,3]
[385556022,1757895047275,-219.36496415,0.00023561,3]
[385556023,1757895047284,-480.0,0.00023561,3]
[385556024,1757895047294,-480.0,0.00023561,3]
[385556025,1757895047303,-673.9,0.00023561,3]
[385556026,1757895047312,-252.61876092,0.00023561,3]
[385556027,1757895047321,-542.05,0.00023561,3]
[385556028,1757895047331,-480.0,0.00023561,3]
[385556029,1757895047340,-907.02,0.00023561,3]
[385556030,1757895047349,-480.0,0.00023561,3]
[385556031,1757895047358,-663.12,0.00023561,3]
[385556032,1757895047367,-151.0,0.00023561,7]
[385556033,1757895047378,-166.14677009,0.00023561,3]
[385556034,1757895047387,-901.88,0.00023561,3]
[385556035,1757895047396,-151.0,0.00023561,7]
[385556036,1757895047405,-3388.12,0.00023561,3]
[385556037,1757895047414,-480.0,0.00023561,3]
[385556038,1757895047423,-480.0,0.00023561,3]
[385556039,1757895047433,-151.0,0.00023561,7]
[385556040,1757895047442,-480.0,0.00023561,3]
[385556041,1757895047451,-480.0,0.00023561,3]
[385556042,1757895047461,-480.0,0.00023561,3]
[385556043,1757895047470,-480.0,0.00023561,3]
[385556044,1757895047479,-211.43279992,0.00023561,3]
[385556045,1757895047488,-480.0,0.00023561,3]
[385556046,1757895047497,-3337.32,0.00023561,3]
[385556047,1757895047506,-455.58590608,0.00023561,3]
[385556048,1757895047515,-480.0,0.00023561,3]
[385556049,1757895047525,-480.0,0.00023561,3]
[385556050,1757895047534,-555.18,0.00023561,3]
[385556051,1757895047543,-500.0,0.00023573,2]
[385556052,1757895047552,-500.0,0.00023573,2]
[385556053,1757895047562,-230.35488053,0.00023573,2]
[385556054,1757895047571,-500.0,0.00023573,2]
[385556055,1757895047580,-203.1771519,0.00023573,2]
[385556056,1757895047589,-500.0,0.00023573,2]
[385556057,1757895047600,-500.0,0.00023573,2]
[385556058,1757895047610,-500.0,0.00023573,2]
[385556059,1757895047620,-500.0,0.00023573,2]
[385556060,1757895047635,-500.0,0.00023573,2]
[385556061,1757895047644,-500.0,0.00023573,2]
[385556062,1757895047653,-1774.52,0.000236,7]
[385556063,1757895047663,-151.0,0.000236,7]
[385556064,1757895047672,-151.0,0.000236,7]
[385556065,1757895047681,-151.0,0.000236,7]
[385556066,1757895047691,-151.0,0.000236,7]
[385556067,1757895047700,-151.0,0.000236,7]
[385556068,1757895047710,-2000.0,0.00023616,2]
[385556069,1757895047720,-2147.42701485,0.00023616,2]
[385556070,1757895047730,-2000.0,0.00023616,2]
[385556071,1757895047739,-2000.0,0.00023616,2]
[385556072,1757895047748,-2000.0,0.00023616,2]
[385556073,1757895047757,-151.0,0.00023693,3]
[385556074,1757895047766,-500.82580189,0.00023695,2]
[385556075,1757895047775,-500.0,0.00023695,2]
[385556076,1757895047784,-500.0,0.00023695,2]
[385556077,1757895047794,-346.98133115,0.00023699,2]
[385556078,1757895047804,-420.0,0.00023711,2]
[385556079,1757895047813,-420.0,0.00023711,2]
[385556080,1757895047823,-420.0,0.00023711,2]
[385556081,1757895047832,-420.0,0.00023711,2]
[385556082,1757895047841,-260.0,0.00023717,2]
[385556083,1757895047850,-441.67645663,0.00023719,2]
[385556084,1757895047860,-500.0,0.00023807,2]
[385556085,1757895047869,-1542.0,0.00023812,2]
[385556086,1757895047878,-480.0,0.00023835,3]
[385556087,1757895047887,-151.0,0.00023835,7]
[385556088,1757895047896,-480.0,0.00023835,3]
[385556089,1757895047905,-151.0,0.00023835,7]
[385556090,1757895047914,-480.0,0.00023835,3]
[385556091,1757895047923,-480.0,0.00023835,3]
[385556092,1757895047933,-480.0,0.00023835,3]
[385556093,1757895047942,-673.9,0.00023835,3]
[385556094,1757895047951,-542.05,0.00023835,3]
[385556095,1757895047961,-480.0,0.00023835,3]
[385556096,1757895047970,-907.02,0.00023835,3]
[385556097,1757895047979,-522.44909831,0.00023835,3]
[385556098,1757895047989,-663.12,0.00023835,3]
[385556099,1757895047998,-901.88,0.00023835,3]
[385556100,1757895048008,-3388.12,0.00023835,3]
[385556101,1757895048021,-480.0,0.00023835,3]
[385556102,1757895048031,-480.0,0.00023835,3]
[385556103,1757895048040,-480.0,0.00023835,3]
[385556104,1757895048049,-480.0,0.00023835,3]
[385556105,1757895048059,-480.0,0.00023835,3]
[385556106,1757895048072,-480.0,0.00023835,3]
[385556107,1757895048082,-294.96565972,0.00023835,3]
[385556108,1757895048091,-3337.32,0.00023835,3]
[385556109,1757895048100,-480.0,0.00023835,3]
[385556110,1757895048109,-480.0,0.00023835,3]
[385556111,1757895048119,-555.18,0.00023835,3]
[385556112,1757895048129,-242.99522321,0.00023867,2]
[385556113,1757895048139,-1000.0,0.000239,2]
[385556114,1757895048150,-7536.11234433,0.00023934,2]
[385556115,1757895048160,-151.0,0.00023947,3]
[385556116,1757895048170,-1000.0,0.00023948,2]
[385556117,1757895048179,-1000.0,0.00023948,2]
[385556118,1757895048188,-5562.313738,0.0002399,2]
[385556119,1757895048197,-233.1999649,0.00024,7]
[385556120,1757895048207,-500.0,0.00024,9]
[385556121,1757895048216,-1000.0,0.00024001,2]
[385556122,1757895048226,-1000.0,0.00024019,2]
[385556123,1757895048235,-1000.0,0.00024019,2]
[385556124,1757895048244,-500.0,0.00024019,2]
[385556125,1757895048254,-480.0,0.00024109,3]
[385556126,1757895048263,-480.0,0.00024109,3]
[385556127,1757895048273,-541.07717111,0.00024109,3]
[385556128,1757895048283,-480.0,0.00024109,3]
[385556129,1757895048292,-480.0,0.00024109,3]
[385556130,1757895048302,-673.9,0.00024109,3]
[385556131,1757895048310,-542.05,0.00024109,3]
[385556132,1757895048319,-480.0,0.00024109,3]
[385556133,1757895048329,-907.02,0.00024109,3]
[385556134,1757895048338,-663.12,0.00024109,3]
[385556135,1757895048347,-901.88,0.00024109,3]
[385556136,1757895048357,-3388.12,0.00024109,3]
[385556137,1757895048366,-480.0,0.00024109,3]
[385556138,1757895048375,-480.0,0.00024109,3]
[385556139,1757895048386,-606.88723217,0.00024109,3]
[385556140,1757895048396,-480.0,0.00024109,3]
[385556141,1757895048406,-480.0,0.00024109,3]
[385556142,1757895048415,-480.0,0.00024109,3]
[385556143,1757895048424,-3337.32,0.00024109,3]
[385556144,1757895048434,-480.0,0.00024109,3]
[385556145,1757895048443,-480.0,0.00024109,3]
[385556146,1757895048452,-500.0,0.00024121,2]
[385556147,1757895048462,-1000.0,0.00024121,2]
[385556148,1757895048471,-1000.0,0.00024121,2]
[385556149,1757895048480,-500.0,0.00024121,2]
[385556150,1757895048490,-1000.0,0.00024121,2]
[385556151,1757895048499,-1000.0,0.00024121,2]
[385556152,1757895048509,-1143.24831229,0.00024121,2]
[385556153,1757895048518,-1001.97059172,0.00024121,2]
[385556154,1757895048528,-1000.0,0.00024121,2]
[385556155,1757895048537,-168.0,0.00024149,2]
[385556156,1757895048546,-151.0,0.00024164,7]
[385556157,1757895048556,-151.0,0.00024164,7]